bitfinex/quotes_BTCUSD_20250519
["timestamp","ask_amount","ask_price","bid_price","bid_amount"]
[1747659614125,0.23910591,102450.0,102440.0,1.05050763]
[1747659614454,0.24886667,102450.0,102440.0,1.04598417]
[1747659614663,0.24886667,102450.0,102440.0,1.0557456]
[1747659614985,0.24886667,102450.0,102440.0,1.03622255]
[1747659615188,0.24886667,102450.0,102440.0,1.04598398]
[1747659615390,0.24886667,102450.0,102440.0,1.05574531]
[1747659616888,0.24886667,102450.0,102440.0,1.04598398]
[1747659617470,0.24886667,102450.0,102440.0,1.05574531]
[1747659617645,0.24886667,102450.0,102440.0,1.0459835]
[1747659617646,0.24886657,102450.0,102440.0,1.0459835]
[1747659617853,0.25862733,102450.0,102440.0,1.02646074]
[1747659618057,0.24886714,102450.0,102440.0,1.02646084]
[1747659618230,0.24886714,102450.0,102440.0,1.0459836]
[1747659618609,0.24886714,102450.0,102440.0,1.03622227]
[1747659619030,0.24886714,102450.0,102440.0,1.04598379]
[1747659619243,0.25862799,102450.0,102440.0,1.02646084]
[1747659619450,0.25862799,102450.0,102440.0,1.03622227]
[1747659619670,0.23910676,102450.0,102440.0,1.04598379]
[1747659619882,0.24886761,102450.0,102440.0,1.04598379]
[1747659620096,0.24886761,102450.0,102440.0,1.05574512]
[1747659620346,0.24886761,102450.0,102440.0,1.04598341]
[1747659620347,0.23910676,102450.0,102440.0,1.04598341]
[1747659620555,0.23910676,102450.0,102440.0,1.05574465]
[1747659620755,0.02436788,102450.0,102440.0,1.05574417]
[1747659621081,0.03412845,102450.0,102440.0,1.05574417]
[1747659621730,0.03412835,102450.0,102440.0,1.05574417]
[1747659621924,0.04388901,102450.0,102440.0,1.05574417]
[1747659622090,0.04388835,102450.0,102440.0,1.05574417]
[1747659622876,0.05364901,102450.0,102440.0,1.05574417]
[1747659623078,0.05364892,102450.0,102440.0,1.05574417]
[1747659623289,0.0146076,102450.0,102440.0,1.05574417]
[1747659623516,0.0146076,102450.0,102440.0,1.15305357]
[1747659623753,0.0146076,102450.0,102440.0,1.18013384]
[1747659624212,0.0096076,102450.0,102440.0,1.20379988]
[1747659630460,0.22443541,102480.0,102470.0,0.24638731]
[1747659630689,0.23419274,102480.0,102470.0,0.03780015]
[1747659630886,0.22443541,102480.0,102470.0,0.03780015]
[1747659631254,0.21467779,102480.0,102470.0,0.0129265]
[1747659631450,0.21467779,102480.0,102470.0,0.01376688]
[1747659631608,0.21467779,102480.0,102470.0,0.02061717]
[1747659631824,0.21467779,102480.0,102470.0,0.0206137]
[1747659632219,0.21467779,102480.0,102470.0,0.02061369]
[1747659632612,0.21567779,102480.0,102470.0,0.05451138]
[1747659633052,0.19616208,102480.0,102470.0,0.62140614]
[1747659633271,0.19616208,102480.0,102470.0,0.72603431]
[1747659633470,0.19716208,102480.0,102470.0,0.72603431]
[1747659633671,0.20691922,102480.0,102470.0,0.72603374]
[1747659633877,0.20691922,102480.0,102470.0,0.72603383]
[1747659634078,0.21667665,102480.0,102470.0,0.72603383]
[1747659634198,0.20591922,102480.0,102470.0,0.73579221]
[1747659634612,0.20591922,102480.0,102470.0,1.12149421]
[1747659634828,0.00014479,102490.0,102480.0,0.57897373]
[1747659635039,0.00014479,102490.0,102480.0,0.70878313]
[1747659635250,0.00014479,102490.0,102480.0,0.74269886]
[1747659635472,0.21479919,102490.0,102480.0,0.90982113]
[1747659635725,0.02941449,102490.0,102480.0,0.88275338]
[1747659635931,0.23431223,102490.0,102480.0,1.07037131]
[1747659636154,0.00014479,102490.0,102480.0,1.12485422]
[1747659636794,0.22455604,102490.0,102480.0,1.08104052]
[1747659637003,0.01965802,102490.0,102480.0,1.11031356]
[1747659637209,0.01965726,102490.0,102480.0,1.12007089]
[1747659637411,0.00990098,102490.0,102480.0,1.12007089]
[1747659637613,0.00990098,102490.0,102480.0,1.12659476]
[1747659637923,0.01965736,102490.0,102480.0,1.12659476]
[1747659638129,0.01965736,102490.0,102480.0,1.12759476]
[1747659638337,0.00990098,102490.0,102480.0,1.12759476]
[1747659638743,0.00014479,102490.0,102480.0,1.12759476]
[1747659638943,0.00990098,102490.0,102480.0,1.12759476]
[1747659639151,0.00014479,102490.0,102480.0,1.12759476]
[1747659639767,0.00014479,102490.0,102480.0,1.14213561]
[1747659641605,0.00990098,102490.0,102480.0,1.12759495]
[1747659642048,0.01965726,102490.0,102480.0,1.12759495]
[1747659642571,0.00014479,102490.0,102480.0,1.12759495]
[1747659642786,0.00014479,102490.0,102480.0,1.1421358]
[1747659644200,0.02926418,102510.0,102500.0,0.59908909]
[1747659644406,0.02974653,102510.0,102500.0,0.60518509]
[1747659644805,0.01023682,102510.0,102500.0,1.01203307]
[1747659645008,0.01023682,102510.0,102500.0,1.10934247]
[1747659645208,0.00048235,102510.0,102500.0,1.10934247]
[1747659645429,0.00048235,102510.0,102500.0,1.11888024]
[1747659645608,0.01123673,102510.0,102500.0,1.11888024]
[1747659645820,0.0229913,102510.0,102500.0,1.12200735]
[1747659646025,0.00148235,102510.0,102500.0,1.1365482]
[1747659646226,0.00048235,102510.0,102500.0,1.1365482]
[1747659646493,0.00048235,102510.0,102500.0,1.15094536]
[1747659647241,0.00048235,102510.0,102500.0,1.15545884]
[1747659650592,0.00048235,102510.0,102500.0,1.15094536]
[1747659654578,0.02974587,102510.0,102500.0,1.11624536]
[1747659654839,0.24989488,102510.0,102500.0,0.24488406]
[1747659655054,0.24989488,102510.0,102500.0,0.25464006]
[1747659655263,0.23259488,102510.0,102500.0,0.60439596]
[1747659655704,0.0199914,102510.0,102500.0,0.6220456]
[1747659655920,0.23460412,102510.0,102500.0,0.62204522]
[1747659656131,0.24435917,102510.0,102500.0,0.62204522]
[1747659656345,0.25250479,102510.0,102500.0,0.63180084]
[1747659656631,0.03950188,102510.0,102500.0,0.63180027]
[1747659656833,0.0199914,102510.0,102500.0,0.63180027]
[1747659656988,0.02974635,102510.0,102500.0,0.63180027]
[1747659657819,0.02974635,102510.0,102500.0,0.62841757]
[1747659658740,0.02974635,102510.0,102500.0,1.0188798]
[1747659661080,0.26045002,102510.0,102500.0,0.97010133]
[1747659661298,0.26045002,102510.0,102500.0,0.98510172]
[1747659661514,0.21509535,102510.0,102500.0,0.9753461]
[1747659661942,0.21509535,102510.0,102500.0,0.98510191]
[1747659662178,0.01023673,102510.0,102500.0,0.98510191]
[1747659662400,0.02974653,102510.0,102500.0,1.00461305]
[1747659662620,0.02974596,102510.0,102500.0,1.00461305]
[1747659663023,0.0199912,102510.0,102500.0,1.00461305]
[1747659663240,0.0199912,102510.0,102500.0,1.03911305]
[1747659663453,0.02974596,102510.0,102500.0,1.03911305]
[1747659663658,0.00048235,102510.0,102500.0,1.03911305]
[1747659663862,0.00048235,102510.0,102500.0,0.63911305]
[1747659664069,0.01023673,102510.0,102500.0,0.63911305]
[1747659664508,0.00048235,102510.0,102500.0,1.03911305]
[1747659664719,0.01023673,102510.0,102500.0,1.03911305]
[1747659665562,0.00048235,102510.0,102500.0,1.03911305]
[1747659665826,0.00048235,102510.0,102500.0,1.13642245]
[1747659666238,0.00048235,102510.0,102500.0,1.1509633]
[1747659666699,0.01950723,102520.0,102510.0,0.56436719]
[1747659666914,0.01950723,102520.0,102510.0,0.60491517]
[1747659667387,0.01950723,102520.0,102510.0,0.61101117]
[1747659667598,0.02926113,102520.0,102510.0,0.61101117]
[1747659667807,0.25432352,102530.0,102520.0,0.0195079]
[1747659668009,0.25446814,102530.0,102520.0,0.21459178]
[1747659668225,0.25446814,102530.0,102520.0,0.55459178]
[1747659668445,0.24471547,102530.0,102520.0,0.56143995]
[1747659668685,0.25246252,102530.0,102520.0,0.56753595]
[1747659668892,0.24270947,102530.0,102520.0,0.56753595]
[1747659669106,0.24270947,102530.0,102520.0,0.57066306]
[1747659670027,0.26470947,102530.0,102520.0,0.56090906]
[1747659670233,0.26870947,102530.0,102520.0,0.56090906]
[1747659670440,0.26870947,102530.0,102520.0,0.57066306]
[1747659670641,0.26870947,102530.0,102520.0,0.58041696]
[1747659672586,0.26870947,102530.0,102520.0,0.57066306]
[1747659672914,0.26870947,102530.0,102520.0,0.58041696]
[1747659674400,0.26470947,102530.0,102520.0,0.59017077]
[1747659674597,0.25846252,102530.0,102520.0,0.59017077]
[1747659674830,0.24096252,102530.0,102520.0,0.59017077]
[1747659675033,0.23696252,102530.0,102520.0,0.59017077]
[1747659676003,0.23896252,102530.0,102520.0,0.59017077]
[1747659676220,0.23896252,102530.0,102520.0,0.58041696]
[1747659676506,0.05365033,102530.0,102520.0,0.59992429]
[1747659676715,0.05364986,102530.0,102520.0,0.63422429]
[1747659676926,0.0438971,102530.0,102520.0,0.63422429]
[1747659677129,0.05364977,102530.0,102520.0,0.63422429]
[1747659677337,0.05364977,102530.0,102520.0,1.03422429]
[1747659677557,0.03214462,102530.0,102520.0,1.03422429]
[1747659677964,0.03014462,102530.0,102520.0,1.03422429]
[1747659678194,0.03014462,102530.0,102520.0,1.13153369]
[1747659678404,0.03114462,102530.0,102520.0,1.13153369]
[1747659678631,0.03014462,102530.0,102520.0,1.13153369]
[1747659679023,0.03014462,102530.0,102520.0,1.13253369]
[1747659679875,0.03014462,102530.0,102520.0,1.13153369]
[1747659680055,0.03014462,102530.0,102520.0,1.13353369]
[1747659680261,0.03014462,102530.0,102520.0,1.14807454]
[1747659680873,0.03014462,102530.0,102520.0,1.15719973]
[1747659681248,0.03014462,102530.0,102520.0,1.15819973]
[1747659682010,0.039897,102530.0,102520.0,1.15719973]
[1747659683305,0.04964957,102530.0,102520.0,1.16019973]
[1747659683728,0.039897,102530.0,102520.0,1.16019973]
[1747659683923,0.04964967,102530.0,102520.0,1.16019973]
[1747659684133,0.04964957,102530.0,102520.0,1.15107454]
[1747659685359,0.039897,102530.0,102520.0,1.15107454]
[1747659685540,0.04964957,102530.0,102520.0,1.15107454]
[1747659685943,0.039897,102530.0,102520.0,1.15107454]
[1747659686373,0.04964948,102530.0,102520.0,1.15107454]
[1747659687330,0.05940205,102530.0,102520.0,1.15107454]
[1747659690210,0.03014462,102530.0,102520.0,1.15107454]
[1747659690380,0.03989719,102530.0,102520.0,1.13653369]
[1747659690722,0.04964995,102530.0,102520.0,1.13653369]
[1747659690926,0.0594029,102530.0,102520.0,1.13653369]
[1747659691091,0.04964995,102530.0,102520.0,1.13653369]
[1747659691344,0.04964995,102530.0,102520.0,1.10223369]
[1747659691514,0.24471528,102530.0,102520.0,0.96590887]
[1747659691725,0.04964986,102530.0,102520.0,0.97566306]
[1747659692068,0.03014462,102530.0,102520.0,1.12717979]
[1747659692274,0.04964995,102530.0,102520.0,1.12717979]
[1747659692467,0.04965005,102530.0,102520.0,1.12717979]
[1747659693293,0.0594029,102530.0,102520.0,1.12717979]
[1747659693411,0.01964995,102530.0,102520.0,1.12717979]
[1747659693890,0.0294029,102530.0,102520.0,1.09247979]
[1747659694600,0.01964995,102530.0,102520.0,1.09247979]
[1747659695256,0.01964995,102530.0,102520.0,1.12727979]
[1747659697770,0.02940281,102530.0,102520.0,1.12727979]
[1747659697979,0.01964995,102530.0,102520.0,1.12727979]
[1747659698868,0.0098971,102530.0,102520.0,1.12727979]
[1747659699420,0.00014462,102530.0,102520.0,1.12727979]
[1747659699620,0.00014462,102530.0,102520.0,1.14182064]
[1747659700456,0.00014462,102530.0,102520.0,1.1689048]
[1747659700871,0.0098971,102530.0,102520.0,1.1689048]
[1747659701268,0.00014462,102530.0,102520.0,1.1689048]
[1747659701440,0.009897,102530.0,102520.0,1.1689048]
[1747659703247,0.009897,102530.0,102520.0,1.17802999]
[1747659705557,0.00014462,102530.0,102520.0,1.17802999]
[1747659709165,0.00014462,102530.0,102520.0,1.17502999]
[1747659709373,0.00014462,102530.0,102520.0,1.17802999]
[1747659709795,0.00014462,102530.0,102520.0,1.18202999]
[1747659711321,0.00014462,102530.0,102520.0,1.19202999]
[1747659711588,0.0154207,102550.0,102540.0,0.25870155]
[1747659711801,0.0154207,102550.0,102540.0,0.28578571]
[1747659711802,0.02517118,102550.0,102540.0,0.28578571]
[1747659712187,0.02517118,102550.0,102540.0,0.69188171]
[1747659712385,0.0154207,102550.0,102540.0,0.69188171]
[1747659712597,0.02517118,102550.0,102540.0,0.69872969]
[1747659712809,0.03492185,102550.0,102540.0,0.69872969]
[1747659713018,0.03492185,102550.0,102540.0,0.66432969]
[1747659713019,0.04467271,102550.0,102540.0,0.66432969]
[1747659713222,0.04467281,102550.0,102540.0,0.65457807]
[1747659713456,0.04467271,102550.0,102540.0,0.64037264]
[1747659713670,0.03492185,102550.0,102540.0,0.64037264]
[1747659713879,0.04467281,102550.0,102540.0,0.64037264]
[1747659714185,0.05442396,102550.0,102540.0,0.64037264]
[1747659714382,0.05442386,102550.0,102540.0,0.64037264]
[1747659714561,0.04467281,102550.0,102540.0,0.64037264]
[1747659714765,0.05442396,102550.0,102540.0,0.64037264]
[1747659715127,0.04467281,102550.0,102540.0,0.64037264]
[1747659715331,0.04467281,102550.0,102540.0,0.24037264]
[1747659715946,0.04467281,102550.0,102540.0,0.64037264]
[1747659717864,0.04369744,102550.0,102540.0,0.64037264]
[1747659718277,0.06119744,102550.0,102540.0,0.64037264]
[1747659718484,0.28297549,102550.0,102540.0,0.01607109]
[1747659718687,0.26347434,102550.0,102540.0,0.35607109]
[1747659721119,0.26347434,102550.0,102540.0,0.01607109]
[1747659722348,0.68936491,102550.0,102540.0,0.01607109]
[1747659722997,0.46479434,102550.0,102540.0,0.01607109]
[1747659723207,0.68936491,102550.0,102540.0,0.01607109]
[1747659723745,0.78667431,102550.0,102540.0,0.01607109]
[1747659724225,0.81594231,102550.0,102540.0,0.01607109]
[1747659725158,0.81594231,102550.0,102540.0,0.00922311]
[1747659725337,1.04051288,102550.0,102540.0,0.00922311]
[1747659725583,1.04051288,102550.0,102540.0,0.00312711]
[1747659725833,0.9337822,102550.0,102540.0,0.00312711]
[1747659726469,0.22434559,102520.0,102510.0,0.34]
[1747659726700,0.42606559,102520.0,102510.0,0.34014462]
[1747659726902,0.22434559,102520.0,102510.0,0.34014462]
[1747659727115,0.42598559,102520.0,102510.0,0.34623862]
[1747659727317,0.42598559,102520.0,102510.0,0.35599376]
[1747659727532,0.42598559,102520.0,102510.0,0.34623862]
[1747659727796,0.42590559,102520.0,102510.0,0.35599376]
[1747659727998,0.42590559,102520.0,102510.0,0.35919154]
[1747659728454,0.41615169,102520.0,102510.0,0.36319154]
[1747659728666,0.42590559,102520.0,102510.0,0.36319154]
[1747659728880,0.42574559,102520.0,102510.0,0.36319154]
[1747659729098,0.22434559,102520.0,102510.0,0.36319154]
[1747659729319,0.2145914,102520.0,102510.0,0.57780445]
[1747659729548,0.4160314,102520.0,102510.0,0.63021388]
[1747659729778,0.43553968,102520.0,102510.0,0.62045921]
[1747659729951,0.01950733,102520.0,102510.0,0.63021312]
[1747659730163,0.21458757,102530.0,102520.0,0.21459159]
[1747659730365,0.22432333,102530.0,102520.0,0.24563188]
[1747659730567,0.23407647,102530.0,102520.0,0.24563188]
[1747659730777,0.23407647,102530.0,102520.0,0.25246469]
[1747659731125,0.22430193,102540.0,102530.0,0.23901637]
[1747659731337,0.20479811,102540.0,102530.0,0.2048179]
[1747659731556,0.21922338,102550.0,102540.0,0.20479802]
[1747659731776,0.02419581,102550.0,102540.0,0.61434765]
[1747659731986,0.24847521,102550.0,102540.0,0.61434765]
[1747659732208,0.24847521,102550.0,102540.0,0.62118056]
[1747659732418,0.04369725,102550.0,102540.0,0.63093218]
[1747659732631,0.24847521,102550.0,102540.0,0.62118056]
[1747659732839,0.25922731,102550.0,102540.0,0.61454904]
[1747659733014,0.25922731,102550.0,102540.0,1.02430095]
[1747659733243,0.24947597,102550.0,102540.0,1.03405276]
[1747659733374,0.25922731,102550.0,102540.0,1.02430095]
[1747659733599,0.25922731,102550.0,102540.0,1.03405276]
[1747659733796,0.24947673,102550.0,102540.0,1.02430095]
[1747659734050,0.24947673,102550.0,102540.0,0.75604692]
[1747659734270,0.24072587,102550.0,102540.0,0.95109275]
[1747659734440,0.24072587,102550.0,102540.0,0.75604692]
[1747659734441,0.22997472,102550.0,102540.0,0.75604692]
[1747659734651,0.23097472,102550.0,102540.0,0.75604692]
[1747659735195,0.23097472,102550.0,102540.0,0.76579921]
[1747659735938,0.23097472,102550.0,102540.0,0.96084504]
[1747659736325,0.23097472,102550.0,102540.0,0.76579921]
[1747659736503,0.23097472,102550.0,102540.0,0.7755514]
[1747659736697,0.23097472,102550.0,102540.0,0.76579921]
[1747659738731,0.23097472,102550.0,102540.0,0.36579921]
[1747659739386,0.22122348,102550.0,102540.0,0.35604692]
[1747659739598,0.22122348,102550.0,102540.0,0.36579921]
[1747659740024,0.23097453,102550.0,102540.0,0.59274504]
[1747659740236,0.23097453,102550.0,102540.0,0.60249714]
[1747659740686,0.23097453,102550.0,102540.0,0.61224905]
[1747659740918,0.23097453,102550.0,102540.0,0.61224914]
[1747659742118,0.23097453,102550.0,102540.0,0.59274504]
[1747659742369,0.23097453,102550.0,102540.0,0.38794692]
[1747659742565,0.23097453,102550.0,102540.0,0.59274494]
[1747659743028,0.23097453,102550.0,102540.0,0.60249704]
[1747659743243,0.23097453,102550.0,102540.0,0.59274494]
[1747659743683,0.23097453,102550.0,102540.0,0.38794692]
[1747659743892,0.22122348,102550.0,102540.0,0.59274504]
[1747659744318,0.22122348,102550.0,102540.0,0.60249723]
[1747659744534,0.24507214,102550.0,102540.0,0.01604692]
[1747659744751,0.44603214,102550.0,102540.0,0.01604692]
[1747659745646,0.885752,102550.0,102540.0,0.01604692]
[1747659746286,0.885752,102550.0,102540.0,0.00921411]
[1747659747538,0.54334154,102550.0,102540.0,0.00921411]
[1747659748475,0.885752,102550.0,102540.0,0.00921411]
[1747659748896,0.885752,102550.0,102540.0,0.00312011]
[1747659749308,0.684792,102550.0,102540.0,0.00312011]
[1747659749555,0.34238154,102550.0,102540.0,0.00312011]
[1747659749760,0.34238154,102550.0,102520.0,0.11162004]
[1747659749761,0.21457085,102530.0,102520.0,0.11162004]
[1747659749961,0.20481799,102530.0,102520.0,0.11162004]
[1747659750368,0.20481799,102530.0,102520.0,0.11771426]
[1747659750567,0.20481799,102530.0,102520.0,0.12083423]
[1747659751538,0.20581799,102530.0,102520.0,0.12083423]
[1747659751743,0.20581799,102530.0,102520.0,0.04251419]
[1747659761741,0.02050543,102530.0,102520.0,0.60929799]
[1747659761945,0.23507647,102530.0,102520.0,0.60685949]
[1747659762188,0.24482971,102530.0,102520.0,0.60685968]
[1747659762397,0.23507714,102530.0,102520.0,0.59710597]
[1747659762610,0.21557123,102530.0,102520.0,0.34921419]
[1747659762799,0.21557123,102530.0,102520.0,0.00921419]
[1747659763209,0.21557123,102530.0,102520.0,0.02471419]
[1747659763334,0.21557123,102530.0,102520.0,0.04101419]
[1747659763741,0.21557123,102530.0,102520.0,0.00921419]
[1747659763969,0.24757123,102530.0,102520.0,0.00921419]
[1747659765583,0.58998169,102530.0,102520.0,0.00921419]
[1747659765986,0.24757123,102530.0,102520.0,0.00921419]
[1747659767063,0.34488063,102530.0,102520.0,0.00921419]
[1747659770423,0.54436063,102530.0,102520.0,0.00921419]
[1747659771017,0.52876063,102530.0,102520.0,0.00921419]
[1747659771220,0.51236063,102530.0,102520.0,0.00921419]
[1747659774407,0.01075257,102530.0,102520.0,0.60515949]
[1747659774621,0.22532342,102530.0,102520.0,0.59540597]
[1747659774854,0.21557085,102530.0,102520.0,0.38081419]
[1747659775218,0.41529085,102530.0,102520.0,0.38081419]
[1747659776049,0.41529085,102530.0,102520.0,0.38281419]
[1747659776251,0.41429085,102530.0,102520.0,0.38281419]
[1747659776474,0.41429085,102530.0,102520.0,0.38381419]
[1747659778381,0.21457085,102530.0,102520.0,0.01221419]
[1747659778580,1.08523071,102530.0,102520.0,0.01221419]
[1747659779245,1.08523071,102530.0,102520.0,0.01121419]
[1747659779452,1.08523071,102530.0,102520.0,0.00921419]
[1747659779649,1.08623071,102530.0,102520.0,0.00921419]
[1747659780219,0.74382025,102530.0,102520.0,0.00921419]
[1747659780600,0.71132025,102530.0,102520.0,0.00921419]
[1747659780804,0.61437085,102530.0,102520.0,0.02551419]
[1747659781040,0.21557085,102530.0,102520.0,0.02551419]
[1747659781239,0.41509085,102530.0,102520.0,0.02551419]
[1747659782057,0.41509085,102530.0,102520.0,0.00921419]
[1747659782390,0.41509085,102530.0,102520.0,0.01606224]
[1747659783625,0.41509085,102530.0,102520.0,0.04726224]
[1747659784414,0.41509085,102530.0,102520.0,0.04726155]
[1747659785245,0.21557085,102530.0,102520.0,0.04726155]
[1747659785471,0.41453085,102530.0,102520.0,0.04726155]
[1747659786219,0.21557085,102530.0,102520.0,0.04726155]
[1747659786436,0.41453085,102530.0,102520.0,0.04726155]
[1747659786658,0.41489085,102530.0,102520.0,0.04726155]
[1747659786861,0.22532409,102530.0,102520.0,0.26185362]
[1747659787114,0.42480409,102530.0,102520.0,0.26185362]
[1747659787364,0.41505123,102530.0,102520.0,0.04726155]
[1747659787540,0.41505123,102530.0,102520.0,0.25209952]
[1747659787745,0.21557123,102530.0,102520.0,0.58234543]
[1747659787941,0.41489123,102530.0,102520.0,0.38726155]
[1747659789260,0.40513809,102530.0,102520.0,0.38726155]
[1747659789644,0.41461028,102530.0,102520.0,0.59209952]
[1747659789853,0.42436333,102530.0,102520.0,0.59209952]
[1747659790058,0.42436333,102530.0,102520.0,0.39701574]
[1747659790880,0.001,102530.0,102520.0,0.70394987]
[1747659791123,0.001,102530.0,102520.0,0.73321129]
[1747659791714,0.001,102530.0,102520.0,1.13321129]
[1747659792455,0.001,102530.0,102520.0,1.16029015]
[1747659792850,0.44244535,102540.0,102530.0,0.59682371]
[1747659793164,0.02925515,102540.0,102530.0,0.71309987]
[1747659793325,0.03900725,102540.0,102530.0,0.71309987]
[1747659793699,0.03900725,102540.0,102530.0,0.71019466]
[1747659793700,0.23405308,102540.0,102530.0,0.71019466]
[1747659793908,0.23605384,102540.0,102530.0,0.70044199]
[1747659794157,0.23705384,102540.0,102530.0,0.70044199]
[1747659794334,0.23705384,102540.0,102530.0,0.71019485]
[1747659795380,0.23705384,102540.0,102530.0,1.11019485]
[1747659797238,0.23705299,102540.0,102530.0,1.11994742]
[1747659797647,0.24680518,102540.0,102530.0,0.71994752]
[1747659798061,0.24680518,102540.0,102530.0,1.11994752]
[1747659798578,0.24680518,102540.0,102530.0,0.71994752]
[1747659798787,0.24680518,102540.0,102530.0,0.72970009]
[1747659798982,0.24680518,102540.0,102530.0,1.12970009]
[1747659799194,0.24680518,102540.0,102530.0,1.11994752]
[1747659800004,0.24680518,102540.0,102530.0,1.11994761]
[1747659800005,0.24680604,102540.0,102530.0,1.11994761]
[1747659800182,0.23705432,102540.0,102530.0,1.11019485]
[1747659800392,0.23705432,102540.0,102530.0,1.12970028]
[1747659801650,0.23705432,102540.0,102530.0,1.11994761]
[1747659802946,0.22730241,102540.0,102530.0,0.88587095]
[1747659803158,0.21755031,102540.0,102530.0,0.75606155]
[1747659803361,0.57516077,102540.0,102530.0,0.01606155]
[1747659803579,0.59036077,102540.0,102530.0,0.01606155]
[1747659803770,0.44715031,102540.0,102530.0,0.01606155]
[1747659804195,0.41675031,102540.0,102530.0,0.01606155]
[1747659805467,0.61455031,102540.0,102530.0,0.04636155]
[1747659805668,0.41535031,102540.0,102530.0,0.04636155]
[1747659807503,0.41535031,102540.0,102530.0,0.01606155]
[1747659808425,0.41535031,102540.0,102530.0,0.04886155]
[1747659809388,0.41535031,102540.0,102530.0,0.01606155]
[1747659809858,0.41527031,102540.0,102530.0,0.04766155]
[1747659811856,0.41519031,102540.0,102530.0,0.04766155]
[1747659812107,0.41519031,102540.0,102530.0,0.2427264]
[1747659812308,0.21755031,102540.0,102530.0,0.59247964]
[1747659812521,0.21755031,102540.0,102530.0,0.38766155]
[1747659812742,0.19804583,102540.0,102530.0,0.38766155]
[1747659812962,0.19804583,102540.0,102530.0,0.78766155]
[1747659813616,0.19804583,102540.0,102530.0,0.38766155]
[1747659814027,0.19804583,102540.0,102530.0,0.78766155]
[1747659816278,0.19804583,102540.0,102530.0,0.99247964]
[1747659816517,0.19804583,102540.0,102530.0,0.78766155]
[1747659817387,0.19804583,102540.0,102530.0,0.9827264]
[1747659817529,0.19804583,102540.0,102530.0,0.78766155]
[1747659817764,0.19804583,102540.0,102530.0,0.9827264]
[1747659818659,0.19804583,102540.0,102530.0,0.99247954]
[1747659818872,0.19804583,102540.0,102530.0,0.9827264]
[1747659819826,0.19804583,102540.0,102530.0,0.78766155]
[1747659820765,0.19804583,102540.0,102530.0,0.9827264]
[1747659821167,0.19804583,102540.0,102530.0,0.99247954]
[1747659821574,0.19804583,102540.0,102530.0,1.00223259]
[1747659825845,0.19804583,102540.0,102530.0,0.99247954]
[1747659829278,0.19804583,102540.0,102530.0,0.75606155]
[1747659829484,0.19804583,102540.0,102530.0,0.9511264]
[1747659829852,0.19804583,102540.0,102530.0,0.35606155]
[1747659830051,0.19804583,102540.0,102530.0,0.5511264]
[1747659830252,0.19804583,102540.0,102530.0,0.35606155]
[1747659830461,0.19804583,102540.0,102530.0,0.5511264]
[1747659830846,0.19804583,102540.0,102530.0,0.5672264]
[1747659831271,0.19804583,102540.0,102530.0,0.5823264]
[1747659831971,0.19804583,102540.0,102530.0,0.38726155]
[1747659832184,0.19804583,102540.0,102530.0,0.5823264]
[1747659833637,0.19804583,102540.0,102530.0,0.38726155]
[1747659835078,0.19804583,102540.0,102530.0,0.35606155]
[1747659835319,0.45476374,102540.0,102530.0,0.35606155]
[1747659836544,0.23014583,102540.0,102530.0,0.35606155]
[1747659836774,0.45476374,102540.0,102530.0,0.01606155]
[1747659836974,0.65232374,102540.0,102530.0,0.01606155]
[1747659837778,0.77008902,102540.0,102530.0,0.01606155]
[1747659838833,1.06511842,102540.0,102530.0,0.01606155]
[1747659839196,1.40750161,102540.0,102530.0,0.01606155]
[1747659839397,2.44230161,102540.0,102530.0,0.01606155]
[1747659839820,2.52107842,102540.0,102530.0,0.00921419]
[1747659840289,2.52107842,102540.0,102530.0,0.00609422]
[1747659841501,0.2350179,102530.0,102520.0,0.01183887]
[1747659841868,0.67471049,102530.0,102520.0,0.01793352]
[1747659842521,0.67471049,102530.0,102520.0,0.02105398]
[1747659844190,0.67471049,102530.0,102520.0,0.01421511]
[1747659844413,0.67771049,102530.0,102520.0,0.00812046]
[1747659844609,0.97771049,102530.0,102520.0,0.005]
[1747659845093,0.8358873,102530.0,102520.0,0.005]
[1747659845294,0.98071049,102530.0,102520.0,0.005]
[1747659845509,1.17827049,102530.0,102520.0,0.005]
[1747659846259,0.87827049,102530.0,102520.0,0.005]
[1747659847235,0.87827049,102530.0,102520.0,0.01109498]
[1747659847651,0.5358873,102530.0,102520.0,0.01109498]
[1747659849065,0.8358873,102530.0,102520.0,0.01109498]
[1747659849311,0.5358873,102530.0,102520.0,0.01109498]
[1747659850614,0.3383273,102530.0,102520.0,0.01109498]
[1747659850820,0.5358873,102530.0,102520.0,0.01109498]
[1747659851870,0.3383273,102530.0,102520.0,0.01109498]
[1747659852065,0.5056873,102530.0,102520.0,0.04309498]
[1747659852671,0.3081273,102530.0,102520.0,0.04991617]
[1747659852860,0.3081273,102530.0,102520.0,0.05303657]
[1747659854647,0.2108179,102530.0,102520.0,0.05303657]
[1747659855508,0.2078179,102530.0,102520.0,0.05303657]
[1747659855929,0.2058179,102530.0,102520.0,0.05303657]
[1747659857478,0.2058179,102530.0,102520.0,0.25787464]
[1747659857893,0.2068179,102530.0,102520.0,0.25787464]
[1747659858519,0.21657085,102530.0,102520.0,0.27738216]
[1747659858742,0.22632409,102530.0,102520.0,0.27738216]
[1747659859151,0.22632352,102530.0,102520.0,0.28713568]
[1747659859380,0.23607676,102530.0,102520.0,0.28713568]
[1747659860805,0.24582914,102530.0,102520.0,0.28713568]
[1747659861054,0.031258,102530.0,102520.0,0.62713568]
[1747659861252,0.03125781,102530.0,102520.0,0.62713568]
[1747659862223,0.04101076,102530.0,102520.0,0.62713568]
[1747659862845,0.04101076,102530.0,102520.0,1.02713568]
[1747659863697,0.05076381,102530.0,102520.0,1.02713568]
[1747659866529,0.05076457,102530.0,102520.0,1.02713568]
[1747659871842,0.03125838,102530.0,102520.0,1.02713568]
[1747659872074,0.03125829,102530.0,102520.0,1.02713568]
[1747659872621,0.04101134,102530.0,102520.0,1.02713568]
[1747659875936,0.24582943,102530.0,102520.0,1.02713568]
[1747659876312,0.24582943,102530.0,102520.0,1.22449568]
[1747659878459,0.04101134,102530.0,102520.0,1.22449568]
[1747659879331,0.23607619,102530.0,102520.0,1.21474216]
[1747659879542,0.04101134,102530.0,102520.0,1.22449568]
[1747659881732,0.04001134,102530.0,102520.0,1.22449568]
[1747659883284,0.03901134,102530.0,102520.0,1.22449568]
[1747659883626,0.03901134,102530.0,102520.0,1.22549568]
[1747659884943,0.04876448,102530.0,102520.0,1.22549568]
[1747659886049,0.24382933,102530.0,102520.0,1.22549568]
[1747659887307,0.04876448,102530.0,102520.0,1.22549568]
[1747659892058,0.03901134,102530.0,102520.0,1.22549568]
[1747659893399,0.02925829,102530.0,102520.0,1.22549568]
[1747659893625,0.03901124,102530.0,102520.0,1.22549568]
[1747659894780,0.04876429,102530.0,102520.0,1.22549568]
[1747659895370,0.23407647,102530.0,102520.0,1.22549587]
[1747659895565,0.24383009,102530.0,102520.0,1.01838235]
[1747659895734,0.24383009,102530.0,102520.0,1.22549606]
[1747659896106,0.24383009,102530.0,102520.0,1.23524968]
[1747659896730,0.24383009,102530.0,102520.0,1.23524901]
[1747659897128,0.039012,102530.0,102520.0,1.23524901]
[1747659897360,0.02925886,102530.0,102520.0,1.23524901]
[1747659900394,0.039012,102530.0,102520.0,1.23524901]